bitfinex/quotes_ETHUSD_20220119
["timestamp","ask_amount","ask_price","bid_price","bid_amount"]
[1642604243141,0.00113685,3157.1,3156.6,0.00170527]
[1642604243341,0.00113685,3157.1,3156.6,0.79382527]
[1642604243538,0.00113685,3157.1,3156.6,1.09382527]
[1642604245241,0.00113685,3157.1,3156.6,0.30170527]
[1642604245470,0.00113685,3157.1,3156.6,0.00170527]
[1642604245865,0.00113685,3157.1,3156.1,2.92852646]
[1642604246067,0.00113685,3157.1,3156.0,1.188]
[1642604246068,1.41837662,3156.9,3156.2,0.00397896]
[1642604246269,1.45034613,3156.6,3156.2,0.00397896]
[1642604246472,1.45034613,3156.6,3156.1,0.00454738]
[1642604246670,0.00113685,3157.1,3156.1,0.79226]
[1642604246871,0.00113685,3157.1,3156.2,2.92397908]
[1642604247070,0.00113685,3157.1,3156.3,1.0]
[1642604247271,0.00113685,3157.1,3156.3,1.00341054]
[1642604247471,0.00113685,3157.1,3156.4,0.30284211]
[1642604247673,6.3,3157.0,3155.8,0.13819997]
[1642604248075,6.3,3157.0,3155.9,0.00284212]
[1642604248076,0.00284211,3156.9,3155.9,0.00284212]
[1642604248471,0.00227369,3156.8,3155.9,0.00284212]
[1642604248674,1.55801567,3156.4,3155.9,0.00284212]
[1642604248872,0.79233,3156.6,3155.9,0.00284212]
[1642604250117,0.79233,3156.6,3155.9,3.03810881]
[1642604250317,0.79233,3156.6,3156.0,2.77912536]
[1642604250518,0.00227369,3156.8,3156.4,1.50869558]
[1642604250917,3.20337177,3158.1,3156.4,1.50869558]
[1642604250918,0.00170527,3156.7,3156.4,1.80869558]
[1642604251317,0.00113684,3156.6,3156.4,1.80869558]
[1642604251518,0.00113684,3156.6,3156.5,3.55]
[1642604251719,1.34921269,3157.6,3156.5,3.55]
[1642604251918,0.00113684,3156.6,3156.5,3.55]
[1642604252118,0.126824,3157.2,3156.5,3.55]
[1642604252318,0.00113684,3156.6,3156.5,3.55]
[1642604252518,0.00397896,3157.1,3156.5,5.13424]
[1642604252722,0.126824,3157.2,3156.5,7.48424]
[1642604252723,0.00113684,3156.6,3156.5,7.48424]
[1642604252971,0.00341054,3157.0,3156.5,10.27102287]
[1642604253170,0.126824,3157.2,3156.5,10.27102287]
[1642604253171,0.00113684,3156.6,3156.5,11.06315257]
[1642604253374,0.00284211,3156.9,3156.5,11.06315257]
[1642604253573,0.00113684,3156.6,3156.5,11.06315257]
[1642604253775,0.00227369,3156.8,3156.5,11.06315257]
[1642604253973,0.00113684,3156.6,3156.5,8.71315257]
[1642604254172,0.00170527,3156.7,3156.5,8.71315257]
[1642604254472,0.126824,3157.2,3156.6,5.99453343]
[1642604254671,0.126824,3157.2,3156.6,6.78661753]
[1642604254873,0.00397896,3157.1,3156.6,7.24519753]
[1642604255072,0.00397896,3157.1,3156.7,1.0]
[1642604255271,0.00341054,3157.0,3156.8,4.72432294]
[1642604255473,0.00341054,3157.0,3156.9,8.82143746]
[1642604255671,0.126824,3157.2,3156.9,10.01007779]
[1642604256072,0.00397896,3157.1,3156.9,10.01007779]
[1642604256274,4.016323,3158.2,3157.0,9.83855908]
[1642604256478,0.126823,3158.2,3157.1,6.6]
[1642604256715,0.00568424,3158.1,3157.2,4.53855908]
[1642604256915,0.00568424,3158.1,3157.3,0.9491804]
[1642604257117,0.00511581,3158.0,3157.4,3.53855908]
[1642604257316,0.00511581,3158.0,3157.9,1.28899681]
[1642604257517,0.126769,3158.5,3158.0,0.79172]
[1642604258019,0.00738951,3158.4,3158.0,0.79172]
[1642604258423,0.126769,3158.5,3158.0,0.79172]
[1642604258424,0.00682108,3158.3,3158.0,0.79172]
[1642604258620,0.00682108,3158.3,3157.9,4.30401495]
[1642604258821,0.00625266,3158.2,3157.9,4.2995808]
[1642604259119,0.02039666,3158.5,3157.9,1.58343]
[1642604259322,0.02039666,3158.5,3158.0,0.00113685]
[1642604259519,0.00113685,3158.4,3158.0,0.00113685]
[1642604259922,1.48093606,3158.1,3158.0,0.00113685]
[1642604260326,0.00113685,3158.4,3158.0,0.79294685]
[1642604260592,0.00113685,3158.4,3158.0,3.78852477]
[1642604261477,0.00113685,3158.4,3158.0,0.79294685]
[1642604261877,1.55301353,3158.3,3158.0,2.37633105]
[1642604262880,0.00113685,3158.4,3158.0,2.37633105]
[1642604263687,0.00113685,3158.4,3158.0,3.37633105]
[1642604263884,0.00113685,3158.4,3158.1,1.24762]
[1642604264083,0.00113685,3158.4,3158.1,3.83076]
[1642604264919,0.00113685,3158.4,3158.2,19.40157]
[1642604265120,0.00113685,3158.4,3158.3,30.11892912]
[1642604265321,1.5891119,3159.3,3158.4,6.3]
[1642604265519,1.5891119,3159.3,3158.5,1.0]
[1642604265718,1.5891119,3159.3,3158.5,1.7914752]
[1642604265719,0.00454738,3159.2,3158.5,1.7914752]
[1642604265918,0.00454738,3159.2,3158.5,1.0]
[1642604266119,0.00397896,3159.1,3158.8,1.47449879]
[1642604266322,0.00397896,3159.1,3158.8,2.26599879]
[1642604266519,0.00341054,3159.0,3158.8,2.26599879]
[1642604266818,3.0,3159.2,3158.8,2.26599879]
[1642604266819,0.00284211,3158.9,3158.8,2.26599879]
[1642604267018,0.00284211,3158.9,3158.7,1.583]
[1642604267418,1.5891119,3159.3,3158.7,3.9574623]
[1642604267419,0.00227369,3158.8,3158.7,3.9574623]
[1642604267621,0.00227369,3158.8,3158.7,11.2074623]
[1642604267818,0.00227369,3158.8,3158.7,12.2074623]
[1642604268472,0.00227369,3158.8,3158.7,13.2534972]
[1642604268672,0.00227369,3158.8,3158.7,9.43695339]
[1642604269072,0.00227369,3158.8,3158.7,9.73695339]
[1642604269672,0.00227369,3158.8,3158.7,10.19295339]
[1642604269874,7.369e-05,3158.8,3158.7,10.19295339]
[1642604270476,1.5891119,3159.3,3158.8,7.09131]
[1642604270675,1.5891119,3159.3,3159.1,1.4115277]
[1642604270875,0.00227369,3159.2,3159.1,0.456]
[1642604271086,0.126742,3159.4,3159.2,6.3022]
[1642604271278,0.126742,3159.4,3159.3,0.61427]
[1642604271485,0.0198,3160.0,3159.4,6.3]
[1642604271723,0.0198,3160.0,3159.5,2.24713]
[1642604271916,0.0198,3160.0,3159.9,4.7261404]
[1642604272119,0.0198,3160.0,3159.9,1.1761404]
[1642604272418,0.02434739,3160.0,3159.9,1.1761404]
[1642604272717,0.02434739,3160.0,3159.9,6.8172804]
[1642604272917,0.02434739,3160.0,3159.9,6.0261404]
[1642604273121,0.02434739,3160.0,3159.9,7.0261404]
[1642604273320,0.02434739,3160.0,3159.9,9.78945366]
[1642604273520,0.02434739,3160.0,3159.9,11.40556228]
[1642604273723,0.02434739,3160.0,3159.9,30.47156228]
[1642604273922,0.01666246,3160.5,3160.0,6.3045]
[1642604274125,0.01666246,3160.5,3160.2,0.79099]
[1642604274332,0.0022737,3160.4,3160.3,5.006]
[1642604274521,0.0022737,3160.4,3160.3,7.756]
[1642604274721,0.0022737,3160.4,3160.3,6.16427]
[1642604275321,0.0022737,3160.4,3160.3,1.61427]
[1642604275583,0.0022737,3160.4,3160.3,3.45]
[1642604275982,0.0022737,3160.4,3160.2,0.79099]
[1642604276188,0.0022737,3160.4,3159.8,4.43539]
[1642604276388,0.00170527,3160.3,3159.8,4.43539]
[1642604276789,0.00113685,3160.2,3159.8,4.43539]
[1642604277289,0.01666246,3160.5,3159.9,7.0911748]
[1642604277489,0.01666246,3160.5,3160.0,0.79107]
[1642604277688,0.00113685,3160.4,3160.0,0.00113685]
[1642604278491,0.00113685,3160.4,3160.0,0.30113685]
[1642604278691,0.00113685,3160.4,3160.0,3.07297537]
[1642604278891,0.00113685,3160.4,3160.0,5.44617477]
[1642604279093,0.00113685,3160.4,3160.0,1.09216685]
[1642604279548,0.00113685,3160.4,3160.1,0.7911385]
[1642604279748,0.00113685,3160.4,3160.2,1.37779979]
[1642604280552,0.00113685,3160.4,3160.0,1.09216685]
[1642604280753,0.00113685,3160.4,3160.0,0.00113685]
[1642604281153,0.00113685,3160.4,3159.8,0.00227369]
[1642604281351,0.00113685,3160.4,3159.5,2.93340085]
[1642604281553,1.27177862,3160.3,3159.6,0.00341054]
[1642604281752,0.00113685,3160.4,3159.6,0.00341054]
[1642604281956,0.00113685,3160.4,3159.6,0.79474054]
[1642604282354,0.00113685,3160.4,3159.7,0.30284212]
[1642604282554,0.00113685,3160.4,3159.7,3.232264]
[1642604282755,0.00113685,3160.4,3159.8,0.00227369]
[1642604282970,0.00113685,3160.4,3159.9,0.15827]
[1642604283378,0.00113685,3160.4,3160.0,0.00113685]
[1642604283777,1.28667566,3160.3,3159.4,0.00454739]
[1642604283976,0.00113685,3160.4,3159.4,0.00454739]
[1642604284877,0.00113685,3160.4,3159.5,0.79134]
[1642604285079,0.00113685,3160.4,3159.6,4.54059805]
[1642604285283,0.00113685,3160.4,3159.6,4.54400859]
[1642604285482,0.00113685,3160.4,3159.7,0.00284212]
[1642604285880,0.00113685,3160.4,3159.9,1.32783419]
[1642604286082,0.00113685,3160.4,3160.0,3.14775071]
[1642604286283,0.00113685,3160.4,3160.0,0.00113685]
[1642604286718,0.00113685,3160.4,3160.0,2.76991455]
[1642604287020,0.00113685,3160.4,3160.1,1.0]
[1642604287223,0.01306531,3161.2,3160.4,6.3]
[1642604287421,0.01306531,3161.2,3160.5,0.456]
[1642604287722,0.00170527,3160.7,3160.5,0.456]
[1642604288122,0.00113684,3160.6,3160.5,1.5762496]
[1642604288524,0.00113684,3160.6,3160.5,0.456]
[1642604289326,0.00113684,3160.6,3160.5,3.606]
[1642604289829,0.00113684,3160.6,3160.5,5.12642183]
[1642604290326,0.00113684,3160.6,3160.5,7.94352217]
[1642604290599,0.00113684,3160.6,3160.5,7.48752217]
[1642604291087,0.00113684,3160.6,3160.5,4.67042183]
[1642604291487,0.00113684,3160.6,3160.5,7.53712682]
[1642604293095,0.00113684,3160.6,3160.5,7.99535682]
[1642604293296,0.00113684,3160.6,3160.5,11.61389749]
[1642604293597,0.01454779,3161.5,3160.6,6.3]
[1642604293798,0.01454779,3161.5,3161.4,6.31254976]
[1642604293994,0.01454779,3161.5,3161.4,7.06854976]
[1642604294220,0.01454779,3161.5,3161.4,10.6081238]
[1642604294427,0.01417184,3162.4,3161.6,18.61]
[1642604294633,0.01417184,3162.4,3162.1,0.012713]
[1642604294827,0.0096632,3162.3,3162.2,7.54652]
[1642604295033,0.0096632,3162.3,3162.2,8.54652]
[1642604295229,0.0096632,3162.3,3162.2,0.756]
[1642604295428,4.64353847,3163.2,3162.2,0.756]
[1642604295629,3.9498,3163.2,3162.4,0.79066]
[1642604295829,0.00341054,3162.9,3162.2,1.58125]
[1642604296031,0.00341054,3162.9,3162.2,1.88125]
[1642604296228,0.00284212,3162.8,3162.2,1.88125]
[1642604296635,0.0022737,3162.7,3162.2,0.3]
[1642604296930,0.00170527,3162.6,3162.0,1.881039]
[1642604297130,0.00170527,3162.6,3162.1,1.58131]
[1642604297328,3.9498,3163.2,3162.1,1.58244685]
[1642604297329,0.00113685,3162.5,3162.1,1.58244685]
[1642604297532,0.00113685,3162.5,3162.2,0.3]
[1642604297731,1.47238592,3162.7,3162.1,0.00113685]
[1642604297732,2.92214736,3162.6,3162.1,0.00113685]
[1642604297970,1.47238592,3162.7,3162.1,0.00033685]
[1642604298173,0.00193685,3162.5,3161.6,0.00317896]
[1642604298373,0.12913527,3162.6,3161.6,0.00317896]
[1642604298572,0.00136843,3162.4,3161.6,0.00317896]
[1642604298776,1.41341559,3162.5,3161.6,0.00317896]
[1642604298975,0.0008,3162.3,3161.6,0.00317896]
[1642604299175,0.00136843,3162.4,3161.6,0.00317896]
[1642604299374,0.00136843,3162.4,3161.6,0.79398916]
[1642604299673,0.0008,3162.3,3161.7,0.79343054]
[1642604300076,1.32793874,3162.6,3161.8,0.00204212]
[1642604300275,0.79089,3162.5,3161.8,0.00204212]
[1642604300475,0.79282685,3162.5,3161.8,0.00204212]
[1642604300675,0.00136843,3162.4,3161.7,0.00261054]
[1642604300876,0.00136843,3162.4,3161.5,0.00374739]
[1642604301075,0.0008,3162.3,3161.4,0.00431581]
[1642604301283,1.45830234,3161.9,3161.4,0.00431581]
[1642604301479,2.24934234,3161.9,3161.1,0.00602108]
[1642604301946,0.0008,3162.3,3161.1,0.00602108]
[1642604302147,0.126643,3162.1,3161.1,3.50806066]
[1642604302351,0.126643,3162.1,3161.1,0.79695728]
[1642604302550,0.79101,3162.0,3161.2,0.00545266]
[1642604302857,0.79101,3162.0,3161.3,0.79094]
[1642604303053,0.79101,3162.0,3161.1,0.00602108]
[1642604303256,0.917653,3162.1,3161.4,0.00431581]
[1642604303257,3.22214736,3161.9,3161.4,0.00431581]
[1642604303455,1.35381713,3160.9,3160.6,0.0088632]
[1642604303655,1.35381713,3160.9,3160.3,0.01056847]
[1642604304056,1.35381713,3160.9,3160.3,0.80176847]
[1642604304255,1.35381713,3160.9,3160.3,0.01056847]
[1642604304460,1.35381713,3160.9,3160.4,0.01000004]
[1642604304657,1.35381713,3160.9,3160.0,0.01227374]
[1642604305058,0.79131,3160.8,3160.0,0.80353374]
[1642604305256,0.79131,3160.8,3160.0,0.79126]
[1642604305472,0.79131,3160.8,3160.1,0.01170531]
[1642604306070,1.35381713,3160.9,3160.2,1.58241]
[1642604306474,1.35381713,3160.9,3160.1,0.31170531]
[1642604306475,1.35381713,3160.9,3160.3,0.01056847]
[1642604306875,1.35381713,3160.9,3160.2,0.01113689]
[1642604307075,1.54247424,3160.5,3160.2,0.01113689]
[1642604307275,1.54247424,3160.5,3159.8,1.09138]
[1642604307276,2.33384424,3160.5,3159.9,0.01284216]
[1642604307676,2.33384424,3160.5,3159.9,0.80418216]
[1642604308080,2.33384424,3160.5,3160.0,0.31227374]
[1642604308478,2.33384424,3160.5,3160.1,0.01170531]
[1642604309519,2.28384424,3160.5,3160.1,0.01170531]
[1642604309720,0.7913,3160.7,3160.1,0.01170531]
[1642604310121,0.7413,3160.7,3160.1,0.01170531]
[1642604310925,1.84282717,3160.7,3160.1,0.01170531]
[1642604312530,0.79138,3160.6,3160.1,0.01170531]
[1642604312730,0.79152,3160.5,3160.1,0.01170531]
[1642604313002,0.79152,3160.5,3158.9,2.92214736]
[1642604313003,2.92214736,3160.4,3158.9,0.0185264]
[1642604313195,0.456,3160.3,3159.0,0.01795797]
[1642604313398,4.15328684,3160.2,3159.0,0.01795797]
[1642604313596,0.79182,3159.5,3158.3,0.02193694]
[1642604313793,0.01583705,3159.3,3158.3,0.02193694]
[1642604314094,4.4289,3159.4,3157.8,0.02477905]
[1642604314095,0.456,3159.2,3157.8,0.02477905]
[1642604314294,0.456,3159.2,3157.9,2.37488]
[1642604314496,1.5,3159.7,3158.5,0.01247325]
[1642604314695,1.5,3159.7,3158.6,0.15823]
[1642604314892,1.5,3159.7,3158.6,0.17846167]
[1642604315094,1.5,3159.7,3158.7,0.01966324]
[1642604315295,1.5,3159.7,3158.8,0.79142]
[1642604315493,1.5,3159.7,3159.0,1.50471524]
[1642604315691,1.5,3159.7,3159.0,3.08762524]
[1642604315890,1.5,3159.7,3159.1,0.01738955]
[1642604316494,1.5,3159.7,3159.1,0.80884955]
[1642604316725,1.5,3159.7,3159.1,0.01738955]
[1642604316927,1.43411956,3159.3,3159.2,0.01682113]
[1642604317127,1.5,3159.7,3159.1,0.01738955]
[1642604317329,1.5,3159.7,3158.6,0.02023167]
[1642604317826,1.5,3159.7,3158.8,0.79161]
[1642604317827,0.79163,3159.6,3158.8,0.79161]
[1642604318125,1.51648117,3159.3,3158.9,0.0185264]
[1642604318527,0.79163,3159.6,3158.9,0.0185264]
[1642604318734,1.5,3159.7,3159.0,0.74156]
[1642604319131,1.5,3159.7,3159.1,0.01738955]
[1642604319530,1.5,3159.7,3159.1,0.31738955]
[1642604319831,1.5,3159.7,3159.2,0.01682113]
[1642604322579,1.5,3159.7,3159.2,1.59974113]
[1642604322980,1.5,3159.7,3159.3,0.3162527]
[1642604323180,1.5,3159.7,3159.3,0.0162527]
[1642604323380,1.5,3159.7,3159.4,0.01568428]
[1642604323582,1.5,3159.7,3159.3,0.0162527]
[1642604323783,1.5,3159.7,3159.4,0.01568428]
[1642604324089,4.59684656,3159.7,3159.2,0.01682113]
[1642604324348,1.5,3159.7,3159.2,0.01682113]
[1642604324537,1.5,3159.7,3158.9,0.0185264]
[1642604325037,1.5,3159.7,3159.0,1.73715382]
[1642604325437,1.5,3159.7,3159.1,0.01738955]
[1642604325637,1.5,3159.7,3159.1,0.80898955]
[1642604326036,1.5,3159.7,3159.2,0.01682113]
[1642604326539,2.9022737,3159.6,3159.1,0.75842113]
[1642604326938,0.00170527,3159.5,3159.1,0.75842113]
[1642604327339,1.5,3159.7,3159.1,0.75842113]
[1642604327340,0.00113685,3159.4,3159.1,0.75842113]
[1642604327739,0.0022737,3159.6,3159.1,0.75842113]
[1642604328177,1.5,3159.7,3159.1,0.75842113]
[1642604328178,0.00170527,3159.5,3159.1,0.75842113]
[1642604328582,0.00113685,3159.4,3159.1,0.75842113]
[1642604328785,0.00113685,3159.4,3158.8,1.58313]
[1642604328982,0.0022737,3159.6,3158.8,1.58313]
[1642604329180,0.0022737,3159.6,3158.9,0.00170527]
[1642604329384,1.5,3159.7,3159.0,0.79156]
[1642604329385,0.00170527,3159.5,3159.0,0.79156]
[1642604329879,1.5,3159.7,3159.0,1.09156]
[1642604329880,0.00113685,3159.4,3159.0,1.09156]
[1642604330282,0.0022737,3159.6,3159.0,1.09156]
[1642604330484,0.0022737,3159.6,3159.1,1.583]
[1642604330682,0.00170527,3159.5,3159.1,1.583]
[1642604331084,0.00113685,3159.4,3159.1,1.583]
[1642604331285,0.00113685,3159.4,3159.2,1.52470408]
[1642604331483,1.5,3159.7,3159.2,1.82470408]
[1642604331484,0.0022737,3159.6,3159.2,1.82470408]
[1642604331721,0.0022737,3159.6,3159.2,3.05239802]
[1642604331925,0.00170527,3159.5,3159.3,0.7914326]
[1642604332121,0.00170527,3159.5,3159.4,9.53037736]
[1642604332324,1.5,3159.7,3159.5,0.03348537]
[1642604332524,1.5,3159.7,3159.4,9.53037736]
[1642604332525,3.6879,3160.7,3159.7,0.03481249]
[1642604333127,3.6879,3160.7,3159.6,0.91423]
[1642604333325,3.6879,3160.7,3160.0,1.43833261]
[1642604333525,3.6879,3160.7,3160.0,1.73833261]
[1642604334326,3.6879,3160.7,3160.1,2.82741624]
[1642604334729,0.82636931,3161.3,3160.1,4.52797284]
[1642604334929,0.82636931,3161.3,3160.1,3.73671624]
[1642604335127,0.00909478,3160.8,3160.1,4.19271624]
[1642604335327,0.00909478,3160.8,3160.1,1.3653]
[1642604335581,1.24171438,3160.7,3160.2,0.79127]
[1642604335783,1.24171438,3160.7,3160.0,1.58254]
[1642604335981,0.00795793,3160.6,3160.0,1.58254]
[1642604336281,0.00738951,3160.5,3160.0,1.58254]
[1642604336480,0.79877951,3160.5,3160.0,1.58254]
[1642604336684,0.00682109,3160.4,3160.0,1.58254]
[1642604336885,0.00682109,3160.4,3159.8,1.22961997]
[1642604337091,0.00625266,3160.3,3159.8,1.22961997]
[1642604337286,0.00625266,3160.3,3159.8,0.43819997]
[1642604337489,0.00568424,3160.2,3159.8,0.13819997]
[1642604337789,0.00511582,3160.1,3159.6,1.58273]
[1642604337990,0.00511582,3160.1,3159.2,1.58296]
[1642604338188,0.00454739,3160.0,3159.2,2.93608755]
[1642604338389,0.00454739,3160.0,3159.2,5.66441901]
[1642604338691,0.00397897,3159.9,3159.3,0.3]
[1642604338992,0.00341055,3159.8,3159.4,3.62023949]
[1642604339534,4.58498,3161.1,3159.9,0.79124]
[1642604339740,0.16523868,3161.6,3160.6,1.54768167]
[1642604339741,1.47737222,3161.3,3160.6,1.54768167]
[1642604339937,0.00738951,3161.0,3160.7,2.90978214]
[1642604340139,0.00738951,3161.0,3160.7,2.71646223]
[1642604340334,0.00682108,3160.9,3160.6,0.3]
[1642604340533,0.00682108,3160.9,3160.7,1.58228]
[1642604340735,0.00625266,3160.8,3160.2,3.57951433]
[1642604340937,0.00625266,3160.8,3160.2,3.02291004]
[1642604341133,0.79124,3161.2,3160.2,0.3]
[1642604341134,0.00568424,3160.7,3160.2,0.3]
[1642604341335,0.00568424,3160.7,3160.2,1.09123]
[1642604341537,0.00511581,3160.6,3160.3,1.58248]
[1642604341937,6.3,3160.4,3159.1,1.1208]
[1642604342141,6.3,3160.4,3157.9,0.456]
[1642604342142,6.3,3160.3,3157.9,0.456]
[1642604342347,6.3,3160.3,3156.2,6.93635753]
[1642604342348,5.705,3159.2,3158.0,2.69324534]
[1642604342538,5.705,3159.2,3155.5,2.69369106]
[1642604342539,0.01251088,3158.8,3155.5,2.69369106]
[1642604342744,0.01251088,3158.8,3155.6,2.27007072]
[1642604342745,5.705,3158.1,3155.6,2.27007072]
[1642604342986,7.84592454,3157.1,3156.2,0.14098072]
[1642604343187,3.29494736,3157.0,3156.2,0.7919772]
[1642604343385,0.01271318,3156.6,3155.7,2.71385391]
[1642604343589,0.01271318,3156.6,3154.7,2.6913214]
[1642604343590,6.4267,3156.5,3154.7,2.6913214]
[1642604343888,5.705,3156.3,3154.8,0.00511581]
[1642604344088,0.2832,3156.2,3154.9,2.6913214]
[1642604344286,0.79258,3155.9,3154.8,0.00511581]
[1642604344486,1.58799212,3156.2,3155.0,2.69530036]
[1642604344487,0.0022737,3156.1,3155.0,2.69530036]
[1642604344689,0.79256,3155.9,3155.1,2.6913214]
[1642604344894,0.79256,3155.9,3155.2,2.6913214]
[1642604345088,0.79256,3155.9,3155.2,0.00284211]
[1642604345288,0.79256,3155.9,3155.3,0.00227369]
[1642604345490,1.58682527,3156.0,3155.0,2.92214736]
[1642604345491,0.00170527,3156.0,3155.0,2.92214736]
[1642604345690,0.00170527,3156.0,3155.1,2.03530868]
[1642604345889,0.38097303,3157.3,3155.5,0.01243458]
[1642604346089,0.38097303,3157.3,3155.6,20.66975922]
[1642604346291,0.00170527,3156.3,3156.2,0.01293307]
[1642604346487,0.38097303,3157.3,3156.3,4.20183854]
[1642604346733,0.38097303,3157.3,3157.2,0.52151362]
[1642604346942,0.1264,3158.9,3157.3,0.01033963]
[1642604347137,2.37559,3158.9,3157.3,0.456]
[1642604347338,0.01136847,3158.3,3157.3,0.456]
[1642604347540,0.80317847,3158.3,3157.3,19.366]
[1642604347735,0.01080005,3158.2,3157.3,19.366]
[1642604347935,0.01080005,3158.2,3157.3,0.756]
[1642604348136,0.80200163,3158.1,3157.3,0.756]
[1642604348336,0.80200163,3158.1,3156.9,0.456]
[1642604348536,0.8014532,3158.0,3157.0,3.46151004]
[1642604348737,0.8014532,3158.0,3157.0,3.17791511]
[1642604348937,0.00909478,3157.9,3156.9,0.756]
[1642604349138,3.96894578,3157.9,3156.9,0.756]
[1642604349338,0.3,3157.7,3156.6,0.1265]
[1642604349541,1.79222,3157.4,3156.3,0.00183854]
[1642604349741,0.01237156,3157.1,3156.3,0.00183854]
[1642604350143,0.00397897,3157.0,3156.3,0.00183854]
[1642604350341,0.79213,3156.8,3156.4,1.16602827]
[1642604350578,0.00341054,3156.9,3156.5,0.456]
[1642604350790,0.0022737,3156.7,3156.6,7.52942462]
[1642604350980,0.00284212,3156.8,3156.6,1.68542462]
[1642604351180,3.16819,3158.2,3156.6,1.68542462]
[1642604351181,0.0022737,3156.7,3156.6,0.756]
[1642604351980,2.50302,3157.6,3156.6,0.756]
[1642604351981,0.1267,3158.1,3156.7,6.3]
[1642604352181,3.16815,3158.2,3156.6,1.056]
[1642604352383,0.00170527,3157.0,3156.7,18.61]
[1642604352581,0.00170527,3157.0,3156.8,0.398993]
[1642604352783,0.79191,3157.3,3156.8,0.381]
[1642604352784,0.00113684,3156.9,3156.8,0.381]
[1642604352981,0.00113684,3156.9,3156.8,18.991]
[1642604353284,0.00284212,3156.9,3156.8,0.381]
[1642604353482,1.11225197,3156.9,3156.8,0.381]
[1642604353682,6.36225197,3156.9,3156.3,0.12853854]
[1642604353882,1.5846,3156.8,3156.3,0.00183854]
[1642604354083,1.5846,3156.8,3156.4,0.00170527]
[1642604354333,0.79232,3156.6,3156.3,0.00183854]
[1642604354737,6.3,3156.5,3155.2,0.1267]
[1642604354937,1.71075,3156.4,3155.0,1.0]
[1642604355136,0.79732405,3156.3,3155.3,0.00625266]
[1642604355340,3.170317,3156.0,3155.3,0.00625266]
[1642604355536,2.377727,3156.0,3154.7,3.30721184]
[1642604355738,0.1267,3155.9,3154.8,0.00909478]
[1642604355937,1.10940985,3156.0,3154.8,0.00909478]
[1642604356237,0.79258,3155.5,3154.8,0.00909478]
[1642604356437,0.79256,3155.3,3154.8,0.00909478]
[1642604356639,0.79258,3155.5,3154.8,0.00909478]
[1642604356640,1.10940985,3155.5,3154.9,0.381]
[1642604356841,0.00170527,3156.7,3155.0,3.29754864]
[1642604356842,1.10940985,3155.3,3155.0,3.29754864]
[1642604357041,1.10940985,3155.3,3155.1,1.7829172]
[1642604357244,1.10940985,3155.5,3155.1,0.38838951]
[1642604357441,1.10940985,3155.5,3155.2,0.00682108]
[1642604357642,1.10940985,3155.3,3155.2,0.00682108]
[1642604358100,1.58486,3156.2,3155.2,0.00682108]
[1642604358101,1.10940985,3155.5,3155.2,0.00682108]
[1642604358302,1.10940985,3155.3,3155.2,1.29817734]
[1642604358601,1.10940985,3155.5,3155.2,1.29817734]
[1642604359002,0.79242,3155.7,3155.2,4.52503241]
[1642604359003,1.10940985,3155.3,3155.2,4.52503241]
[1642604359203,1.10940985,3155.5,3155.2,4.52503241]
[1642604359403,1.10940985,3155.5,3155.3,0.0055812]
[1642604359603,1.10382865,3155.3,3155.2,4.52503241]
[1642604359903,1.10382865,3155.3,3155.1,1.5566814]
[1642604360104,1.10382865,3155.3,3155.1,0.381]
[1642604360509,1.10382865,3155.3,3155.2,3.23750137]
[1642604360706,5.5467,3157.2,3155.3,6.3]
[1642604360707,0.1258,3156.6,3155.3,6.3]
[1642604360909,0.1257,3157.0,3156.5,1.45388588]
[1642604361111,0.00113684,3156.6,3156.5,1.45388588]
[1642604361307,0.00284211,3156.9,3156.5,2.05388588]
[1642604361507,0.00113684,3156.6,3156.5,7.95388588]
[1642604361733,1.5842,3157.2,3156.6,6.3]
[1642604361927,1.58404,3157.9,3157.1,1.18122244]
[1642604362128,1.58404,3157.9,3157.1,0.3]
[1642604362129,0.79201,3157.3,3157.1,0.3]
[1642604362327,0.79201,3157.3,3156.5,0.30170527]
[1642604362526,0.1289737,3157.2,3156.5,0.00170527]
[1642604362727,0.0022737,3157.2,3156.6,0.00113685]
[1642604362934,1.58602527,3157.1,3156.4,0.00227369]
[1642604363134,1.58602527,3157.1,3155.9,0.1267]
[1642604363135,1.0,3156.9,3156.5,0.00170527]
[1642604363331,1.71272527,3157.1,3155.9,0.1267]
[1642604363332,0.01749368,3156.7,3155.9,0.1267]
[1642604363529,5.61373909,3156.5,3156.0,0.00284212]
[1642604363731,0.1267,3156.4,3156.0,0.00284212]
[1642604363932,0.1267,3156.4,3156.0,1.27776602]
[1642604364236,0.1267,3156.4,3156.1,0.00227369]
[1642604364432,0.79249,3156.5,3156.1,0.00227369]
[1642604364635,0.1267,3156.6,3156.1,3.59438649]
[1642604364837,0.00113685,3156.7,3156.2,1.5077]
[1642604365036,0.00113685,3156.7,3156.3,18.66028488]
[1642604365232,0.00113685,3156.7,3156.5,1.3056188]
[1642604365476,0.00113685,3156.7,3156.6,4.231]
[1642604365680,0.00113685,3156.7,3156.6,0.381]
[1642604366780,0.00113685,3156.7,3156.3,0.00113685]
[1642604366987,0.79349685,3156.7,3156.3,0.00113685]
[1642604367182,0.92019685,3156.7,3156.3,0.00113685]
[1642604367383,0.79349685,3156.7,3156.3,0.00113685]
[1642604367582,0.79349685,3156.7,3156.5,2.6420754]
[1642604367788,0.1267,3157.8,3156.7,22.91]
[1642604367983,0.1265,3158.0,3156.9,0.00782904]
[1642604368189,0.1265,3158.1,3157.4,1.21201151]
[1642604368384,0.1265,3158.4,3157.4,1.51201151]
[1642604368586,0.00795793,3158.1,3157.4,1.51201151]
[1642604368787,0.79203,3157.9,3157.4,0.3]
[1642604368987,0.1265,3157.8,3157.0,1.70646867]
[1642604369252,0.13275266,3157.8,3157.0,0.981]
[1642604369443,0.13275266,3157.8,3157.0,0.3]
[1642604369444,0.79761423,3157.7,3157.0,0.3]
[1642604369644,0.1265,3157.6,3156.5,0.381]
[1642604369844,0.1265,3157.6,3156.5,0.681]
[1642604369845,0.13161581,3157.6,3156.5,0.681]
[1642604370046,0.00454739,3157.5,3156.7,1.63772493]
[1642604370245,0.00454739,3157.5,3156.7,1.93772493]
[1642604370448,0.00397896,3157.4,3156.8,4.38410466]
[1642604370646,0.00397896,3157.4,3157.2,1.30533171]
[1642604370951,0.1265,3157.9,3157.4,0.00833189]
[1642604371150,0.1265,3158.4,3158.2,1.52886315]
[1642604371547,0.13819997,3158.5,3158.2,1.82886315]
[1642604371749,0.13819997,3158.5,3158.2,0.3]